fUSD/lending_fUSD_20250521
["ID","MTS","AMOUNT","RATE_DAILY","PERIOD"]
[361845243,1747835438063,-500.0,0.00032754,2]
[361845244,1747835438073,-500.0,0.00032754,2]
[361845245,1747835438083,-500.0,0.00032754,2]
[361845246,1747835438093,-500.0,0.00032754,2]
[361845247,1747835438103,-500.0,0.00032754,2]
[361845248,1747835438114,-500.0,0.00032754,2]
[361845249,1747835438124,-500.0,0.00032754,2]
[361845250,1747835438134,-500.0,0.00032754,2]
[361845251,1747835438144,-500.0,0.00032754,2]
[361845252,1747835438154,-500.0,0.00032754,2]
[361845253,1747835438164,-500.0,0.00032754,2]
[361845254,1747835438174,-500.0,0.00032754,2]
[361845255,1747835438183,-500.0,0.00032754,2]
[361845256,1747835438193,-500.0,0.00032754,2]
[361845257,1747835438203,-500.0,0.00032754,2]
[361845258,1747835438213,-500.0,0.00032754,2]
[361845259,1747835438223,-500.0,0.00032754,2]
[361845260,1747835438233,-500.0,0.00032754,2]
[361845261,1747835438243,-500.0,0.00032754,2]
[361845262,1747835438253,-500.0,0.00032754,2]
[361845263,1747835438263,-500.0,0.00032754,2]
[361845264,1747835438274,-500.0,0.00032754,2]
[361845265,1747835438284,-500.0,0.00032754,2]
[361845266,1747835438294,-500.0,0.00032754,2]
[361845267,1747835438307,-500.0,0.00032754,2]
[361845268,1747835438317,-500.0,0.00032754,2]
[361845269,1747835438328,-500.0,0.00032754,2]
[361845270,1747835438338,-500.0,0.00032754,2]
[361845271,1747835438350,-500.0,0.00032754,2]
[361845272,1747835438361,-500.0,0.00032754,2]
[361845273,1747835438373,-500.0,0.00032754,2]
[361845274,1747835438385,-500.0,0.00032754,2]
[361845275,1747835438395,-500.0,0.00032754,2]
[361845276,1747835438406,-499.50342446,0.00032754,2]
[361845277,1747835438416,-500.0,0.00032754,2]
[361845278,1747835438427,-500.0,0.00032754,2]
[361845279,1747835438437,-500.0,0.00032754,2]
[361845280,1747835438452,-500.0,0.00032754,2]
[361845281,1747835438462,-500.0,0.00032754,2]
[361845282,1747835438473,-296.29049899,0.00032754,2]
[361845283,1747835438483,-500.0,0.00032754,2]
[361845284,1747835438493,-500.0,0.00032754,2]
[361845285,1747835438504,-500.0,0.00032754,2]
[361845286,1747835438514,-500.0,0.00032754,2]
[361845287,1747835438524,-500.0,0.00032754,2]
[361845288,1747835438534,-500.0,0.00032754,2]
[361845289,1747835438544,-500.0,0.00032754,2]
[361845290,1747835438554,-500.0,0.00032754,2]
[361845291,1747835438564,-500.0,0.00032754,2]
[361845292,1747835438575,-500.0,0.00032754,2]
[361845293,1747835438584,-500.0,0.00032754,2]
[361845294,1747835438595,-500.0,0.00032754,2]
[361845295,1747835438606,-500.0,0.00032754,2]
[361845296,1747835438617,-500.0,0.00032754,2]
[361845297,1747835438627,-500.0,0.00032754,2]
[361845298,1747835438637,-500.0,0.00032754,2]
[361845299,1747835438648,-500.0,0.00032754,2]
[361845300,1747835438658,-500.0,0.00032754,2]
[361845301,1747835438668,-500.0,0.00032754,2]
[361845302,1747835438678,-500.0,0.00032754,2]
[361845303,1747835438689,-600.0,0.00032754,2]
[361845304,1747835438699,-500.0,0.00032754,2]
[361845305,1747835438710,-500.0,0.00032754,2]
[361845306,1747835438720,-500.0,0.00032754,2]
[361845307,1747835438729,-500.0,0.00032754,2]
[361845308,1747835438739,-8358.64530451,0.00032755,2]
[361845309,1747835438750,-41793.2265226,0.00032755,2]
[361845310,1747835438760,-151.0,0.00032765,7]
[361845311,1747835438770,-151.0,0.00032765,7]
[361845312,1747835438780,-151.0,0.00032765,7]
[361845313,1747835438790,-151.0,0.00032765,7]
[361845314,1747835438801,-151.0,0.00032765,7]
[361845315,1747835438811,-151.0,0.00032765,7]
[361845316,1747835438821,-151.0,0.00032765,7]
[361845317,1747835438831,-151.0,0.00032765,7]
[361845318,1747835438842,-151.0,0.00032765,7]
[361845319,1747835438851,-151.0,0.00032765,7]
[361845320,1747835438862,-151.0,0.00032765,7]
[361845321,1747835438873,-151.0,0.00032765,7]
[361845322,1747835438894,-236.922341,0.00032765,7]
[361845323,1747835438905,-89909.2375,0.00032765,2]
[361845324,1747835438915,-5000.0,0.00032766,2]
[361845325,1747835438926,-190.73482671,0.00032766,6]
[361845326,1747835438936,-169.81421378,0.00032776,4]
[361845327,1747835438946,-190.73482671,0.00032776,6]
[361845328,1747835438957,-8358.64530451,0.0003279,2]
[361845329,1747835438967,-5000.0,0.000328,2]
[361845330,1747835438978,-2200.0,0.000328,11]
[361845331,1747835438987,-8358.64530451,0.00032855,2]
[361845332,1747835438997,-8358.64530451,0.00032855,2]
[361845333,1747835439007,-50151.8718271,0.00032856,2]
[361845334,1747835439018,-151.0,0.00032856,7]
[361845335,1747835439028,-151.0,0.00032856,7]
[361845336,1747835439038,-151.0,0.00032856,7]
[361845337,1747835439050,-151.0,0.00032856,7]
[361845338,1747835439060,-243.685792,0.00032856,7]
[361845339,1747835439070,-151.0,0.00032856,7]
[361845340,1747835439081,-151.0,0.00032856,7]
[361845341,1747835439090,-151.0,0.00032856,7]
[361845342,1747835439100,-151.0,0.00032856,7]
[361845343,1747835439110,-151.0,0.00032856,7]
[361845344,1747835439120,-151.0,0.00032856,7]
[361845345,1747835439130,-151.0,0.00032856,7]
[361845347,1747835439140,-151.0,0.00032856,7]
[361845349,1747835439492,-322.880709,0.00032856,7]
[361845350,1747835439502,-322.880709,0.00032856,7]
[361845351,1747835439513,-151.0,0.00032856,7]
[361845352,1747835439524,-151.0,0.00032856,7]
[361845353,1747835439534,-151.230817,0.00032856,7]
[361845354,1747835439545,-151.0,0.00032856,7]
[361845355,1747835439554,-151.0,0.00032856,7]
[361845356,1747835439564,-151.0,0.00032856,7]
[361845357,1747835439574,-151.0,0.00032856,7]
[361845358,1747835439583,-194.90462,0.00032856,7]
[361845359,1747835439593,-151.0,0.00032856,7]
[361845360,1747835439603,-194.90462,0.00032856,7]
[361845361,1747835439612,-151.973778,0.00032856,7]
[361845362,1747835439623,-151.0,0.00032856,7]
[361845363,1747835439633,-151.0,0.00032856,7]
[361845364,1747835439643,-151.0,0.00032856,7]
[361845365,1747835439658,-151.0,0.00032856,7]
[361845366,1747835439668,-151.0,0.00032856,7]
[361845367,1747835439678,-151.0,0.00032856,7]
[361845368,1747835439688,-151.0,0.00032856,7]
[361845369,1747835439698,-151.0,0.00032856,7]
[361845370,1747835439708,-151.0,0.00032856,7]
[361845371,1747835439718,-151.0,0.00032856,7]
[361845372,1747835439728,-151.0,0.00032856,7]
[361845373,1747835439738,-151.0,0.00032856,7]
[361845374,1747835439748,-151.0,0.00032856,7]
[361845375,1747835439758,-349.688323,0.00032856,7]
[361845377,1747835439768,-3167.483767,0.00032856,7]
[361845378,1747835439778,-349.688323,0.00032856,7]
[361845379,1747835439788,-3167.483767,0.00032856,7]
[361845380,1747835439798,-151.0,0.00032856,7]
[361845381,1747835439808,-851.695075,0.00032856,7]
[361845382,1747835439818,-851.695075,0.00032856,7]
[361845383,1747835439828,-151.0,0.00032856,7]
[361845384,1747835439838,-242.141989,0.00032856,7]
[361845385,1747835439848,-151.0,0.00032865,7]
[361845386,1747835439857,-151.0,0.00032865,7]
[361845387,1747835439868,-151.0,0.00032865,7]
[361845388,1747835439878,-151.0,0.00032865,7]
[361845389,1747835439888,-151.0,0.00032865,7]
[361845390,1747835439898,-151.0,0.00032865,7]
[361845391,1747835439908,-151.0,0.00032865,7]
[361845392,1747835439918,-151.0,0.00032865,7]
[361845393,1747835439927,-151.0,0.00032865,7]
[361845394,1747835439937,-322.880709,0.00032865,7]
[361845395,1747835439948,-322.880709,0.00032865,7]
[361845396,1747835439957,-151.0,0.00032865,7]
[361845397,1747835439967,-151.0,0.00032865,7]
[361845398,1747835439976,-151.0,0.00032865,7]
[361845399,1747835439986,-151.0,0.00032865,7]
[361845400,1747835439996,-151.0,0.00032865,7]
[361845401,1747835440005,-194.90462,0.00032865,7]
[361845402,1747835440016,-151.0,0.00032865,7]
[361845403,1747835440026,-194.90462,0.00032865,7]
[361845404,1747835440036,-151.0,0.00032865,7]
[361845405,1747835440047,-151.322324,0.00032865,7]
[361845406,1747835440056,-151.0,0.00032865,7]
[361845407,1747835440066,-151.0,0.00032865,7]
[361845408,1747835440075,-151.0,0.00032865,7]
[361845409,1747835440085,-151.0,0.00032865,7]
[361845410,1747835440099,-151.0,0.00032865,7]
[361845411,1747835440109,-151.0,0.00032865,7]
[361845412,1747835440120,-151.0,0.00032865,7]
[361845413,1747835440130,-151.0,0.00032865,7]
[361845414,1747835440140,-151.0,0.00032865,7]
[361845415,1747835440150,-349.688323,0.00032865,7]
[361845416,1747835440160,-3167.483767,0.00032865,7]
[361845417,1747835440170,-151.0,0.00032865,7]
[361845418,1747835440179,-349.688323,0.00032865,7]
[361845419,1747835440189,-3167.483767,0.00032865,7]
[361845420,1747835440198,-151.0,0.00032865,7]
[361845421,1747835440208,-151.0,0.00032865,7]
[361845422,1747835440218,-151.0,0.00032865,7]
[361845423,1747835440228,-151.0,0.00032865,7]
[361845424,1747835440238,-151.0,0.00032865,7]
[361845425,1747835440248,-151.0,0.00032865,7]
[361845426,1747835440258,-192.688154,0.00032865,7]
[361845427,1747835440268,-851.695075,0.00032865,7]
[361845429,1747835440279,-851.695075,0.00032865,7]
[361845430,1747835440289,-250.39648,0.00032865,7]
[361845431,1747835440301,-151.0,0.00032865,7]
[361845432,1747835440313,-151.0,0.00032865,7]
[361845433,1747835440323,-151.0,0.00032865,7]
[361845434,1747835440333,-151.0,0.00032865,7]
[361845435,1747835440343,-151.0,0.00032865,7]
[361845437,1747835440353,-180.589711,0.00032865,7]
[361845438,1747835440363,-108662.388959,0.00032865,2]
[361845439,1747835440374,-113869.231705,0.00032865,2]
[361845440,1747835440385,-207.03160748,0.00032866,2]
[361845441,1747835440395,-109651.852753,0.00032866,2]
[361845442,1747835440407,-151.0,0.00032866,7]
[361845443,1747835440416,-151.0,0.00032866,7]
[361845444,1747835440426,-151.0,0.00032866,7]
[361845445,1747835440436,-163.179708,0.00032866,7]
[361845446,1747835440446,-151.0,0.00032866,7]
[361845447,1747835440456,-152.602475,0.00032866,7]
[361845448,1747835440466,-151.0,0.00032866,7]
[361845449,1747835440476,-151.0,0.00032866,7]
[361845450,1747835440486,-151.0,0.00032866,7]
[361845451,1747835440496,-151.0,0.00032866,7]
[361845452,1747835440506,-322.880709,0.00032866,7]
[361845453,1747835440516,-322.880709,0.00032866,7]
[361845454,1747835440527,-151.0,0.00032866,7]
[361845455,1747835440536,-151.0,0.00032866,7]
[361845456,1747835440546,-151.0,0.00032866,7]
[361845457,1747835440556,-194.90462,0.00032866,7]
[361845458,1747835440566,-151.0,0.00032866,7]
[361845459,1747835440576,-194.90462,0.00032866,7]
[361845460,1747835440587,-151.0,0.00032866,7]
[361845461,1747835440597,-151.0,0.00032866,7]
[361845462,1747835440607,-151.0,0.00032866,7]
[361845463,1747835440619,-151.0,0.00032866,7]
[361845464,1747835440629,-151.0,0.00032866,7]
[361845465,1747835440646,-151.0,0.00032866,7]
[361845466,1747835440656,-151.0,0.00032866,7]
[361845467,1747835440673,-151.0,0.00032866,7]
[361845468,1747835440684,-151.0,0.00032866,7]
[361845469,1747835440695,-349.688323,0.00032866,7]
[361845470,1747835440706,-3167.483767,0.00032866,7]
[361845471,1747835440717,-349.688323,0.00032866,7]
[361845472,1747835440728,-3167.483767,0.00032866,7]
[361845473,1747835440739,-151.0,0.00032866,7]
[361845474,1747835440749,-851.695075,0.00032866,7]
[361845475,1747835440765,-851.695075,0.00032866,7]
[361845476,1747835440780,-151.0,0.00032866,7]
[361845477,1747835440793,-500.0,0.00032873,5]
[361845478,1747835440806,-500.0,0.00032873,5]
[361845479,1747835440819,-500.0,0.00032873,5]
[361845480,1747835440833,-500.0,0.00032873,5]
[361845481,1747835440854,-502.53967774,0.00032873,5]
[361845482,1747835440878,-500.0,0.00032873,5]
[361845483,1747835440889,-500.0,0.00032873,5]
[361845484,1747835440900,-500.0,0.00032873,5]
[361845485,1747835440910,-200.0,0.00032873,2]
[361845486,1747835440921,-200.0,0.00032874,2]
[361845487,1747835440932,-200.0,0.00032874,2]
[361845488,1747835440942,-224008.21170791,0.00032875,7]
[361845489,1747835441430,-14561.89569214,0.00032875,7]
[361845490,1747835441441,-168.934,0.00032875,2]
[361845491,1747835441451,-153.97,0.00032875,2]
[361845492,1747835441460,-151.0,0.00032875,7]
[361845493,1747835441470,-151.0,0.00032875,7]
[361845494,1747835441480,-254.443361,0.00032875,7]
[361845495,1747835441490,-322.880709,0.00032875,7]
[361845496,1747835441499,-322.880709,0.00032875,7]
[361845497,1747835441509,-151.0,0.00032875,7]
[361845498,1747835441518,-151.0,0.00032875,7]
[361845499,1747835441529,-194.90462,0.00032875,7]
[361845500,1747835441538,-151.0,0.00032875,7]
[361845501,1747835441548,-194.90462,0.00032875,7]
[361845502,1747835441558,-151.0,0.00032875,7]
[361845503,1747835441567,-151.0,0.00032875,7]
[361845504,1747835441576,-151.0,0.00032875,7]
[361845505,1747835441587,-151.0,0.00032875,7]
[361845506,1747835441596,-151.0,0.00032875,7]
[361845507,1747835441606,-151.0,0.00032875,7]
[361845508,1747835441617,-151.0,0.00032875,7]
[361845509,1747835441627,-151.0,0.00032875,7]
[361845510,1747835441637,-349.688323,0.00032875,7]
[361845511,1747835441646,-3167.483767,0.00032875,7]
[361845512,1747835441655,-349.688323,0.00032875,7]
[361845513,1747835441665,-3167.483767,0.00032875,7]
[361845514,1747835441675,-851.695075,0.00032875,7]
[361845515,1747835441685,-851.695075,0.00032875,7]
[361845516,1747835441695,-165.82832383,0.00032875,7]
[361845517,1747835441704,-130.1658819,0.00032876,5]
[361845518,1747835441717,-28.1097261,0.00032876,5]
[361845519,1747835441727,-415.17935262,0.00032876,5]
[361845520,1747835441747,-255.16197238,0.00032876,5]
[361845521,1747835441756,-0.78902764,0.00032876,5]
[361845522,1747835441769,-516.97500008,0.00032876,5]
[361845531,1747835445844,-151.0,0.00032856,7]
[361845532,1747835445854,-151.0,0.00032865,7]
[361845533,1747835445866,-31.59977928,0.00032876,5]
[361845534,1747835445878,-984.97900672,0.00032876,5]
[361845535,1747835446017,-544.89398928,0.00032876,5]
[361845536,1747835446027,-151.213998,0.00032876,7]
[361845537,1747835446037,-151.0,0.00032876,7]
[361845538,1747835446049,-151.0,0.00032876,7]
[361845539,1747835446059,-151.0,0.00032876,7]
[361845540,1747835446068,-151.0,0.00032876,7]
[361845541,1747835446078,-206.721017,0.00032876,7]
[361845542,1747835446088,-420.0,0.00032876,5]
[361845543,1747835446097,-151.0,0.00032876,7]
[361845544,1747835446107,-151.0,0.00032876,7]
[361845545,1747835446117,-151.0,0.00032876,7]
[361845546,1747835446129,-192.361055,0.00032876,7]
[361845547,1747835446139,-452.32,0.00032876,5]
[361845548,1747835446149,-151.0,0.00032876,7]
[361845549,1747835446159,-151.0,0.00032876,7]
[361845550,1747835446168,-151.0,0.00032876,7]
[361845551,1747835446178,-185.92,0.00032876,5]
[361845552,1747835446187,-151.0,0.00032876,7]
[361845553,1747835446197,-151.0,0.00032876,7]
[361845554,1747835446206,-151.0,0.00032876,7]
[361845555,1747835446216,-151.0,0.00032876,7]
[361845556,1747835446226,-151.0,0.00032876,7]
[361845557,1747835446235,-187.009431,0.00032876,7]
[361845558,1747835446245,-691.04,0.00032876,5]
[361845559,1747835446255,-151.0,0.00032876,7]
[361845560,1747835446264,-202.46276,0.00032876,7]
[361845561,1747835446274,-420.0,0.00032876,5]
[361845562,1747835446285,-151.0,0.00032876,7]
[361845563,1747835446295,-420.0,0.00032876,5]
[361845565,1747835446310,-151.0,0.00032876,7]
[361845566,1747835446327,-194.626108,0.00032876,7]
[361845567,1747835446336,-420.0,0.00032876,5]
[361845568,1747835446346,-151.0,0.00032876,7]
[361845569,1747835446356,-151.0,0.00032876,7]
[361845570,1747835446366,-151.0,0.00032876,7]
[361845571,1747835446377,-151.0,0.00032876,7]
[361845572,1747835446389,-420.0,0.00032876,5]
[361845573,1747835446398,-420.0,0.00032876,5]
[361845574,1747835446408,-731.83,0.00032876,5]
[361845575,1747835446418,-970.47,0.00032876,5]
[361845576,1747835446428,-420.0,0.00032876,5]
[361845577,1747835446437,-420.0,0.00032876,5]
[361845578,1747835446447,-506.74615216,0.00032876,5]
[361845579,1747835446702,-380.0,0.00032876,5]
[361845580,1747835446715,-596.1,0.00032876,5]
[361845581,1747835446725,-420.0,0.00032876,5]
[361845582,1747835446736,-420.0,0.00032876,5]
[361845583,1747835446746,-420.0,0.00032876,5]
[361845584,1747835446756,-499.62,0.00032876,5]
[361845585,1747835446766,-937.81,0.00032876,5]
[361845586,1747835446775,-151.0,0.00032876,7]
[361845587,1747835446785,-400.0,0.00032876,5]
[361845588,1747835446795,-420.0,0.00032876,5]
[361845589,1747835446806,-420.0,0.00032876,5]
[361845590,1747835446815,-477.04993413,0.00032876,5]
[361845591,1747835446825,-420.0,0.00032876,5]
[361845592,1747835446835,-151.0,0.00032876,7]
[361845593,1747835446845,-420.0,0.00032876,5]
[361845594,1747835446854,-151.0,0.00032876,7]
[361845595,1747835446863,-151.0,0.00032876,7]
[361845596,1747835446877,-151.0,0.00032876,7]
[361845597,1747835446888,-420.0,0.00032876,5]
[361845598,1747835446898,-183.974592,0.00032876,7]
[361845599,1747835446907,-420.0,0.00032876,5]
[361845600,1747835446917,-151.140362,0.00032876,7]
[361845601,1747835446927,-151.0,0.00032876,7]
[361845602,1747835446938,-363.48722499,0.00032876,5]
[361845603,1747835447113,-56.51277501,0.00032876,5]
[361845604,1747835447123,-231.89327877,0.00032876,5]
[361845605,1747835447173,-188.10672123,0.00032876,5]
[361845606,1747835447183,-550.94,0.00032876,5]
[361845607,1747835447193,-151.0,0.00032876,7]
[361845608,1747835447203,-738.45,0.00032876,5]
[361845609,1747835447213,-1326.84,0.00032876,5]
[361845610,1747835447223,-380.0,0.00032876,5]
[361845611,1747835447233,-637.64,0.00032876,5]
[361845612,1747835447242,-420.0,0.00032876,5]
[361845613,1747835447252,-151.0,0.00032876,7]
[361845614,1747835447261,-151.0,0.00032876,7]
[361845615,1747835447271,-151.0,0.00032876,7]
[361845616,1747835447281,-400.0,0.00032876,5]
[361845617,1747835447291,-420.0,0.00032876,5]
[361845618,1747835447301,-151.0,0.00032876,7]
[361845619,1747835447314,-151.0,0.00032876,7]
[361845620,1747835447325,-151.0,0.00032876,7]
[361845621,1747835447335,-151.0,0.00032876,7]
[361845622,1747835447345,-151.0,0.00032876,7]
[361845623,1747835447355,-151.0,0.00032876,7]
[361845624,1747835447364,-151.0,0.00032876,7]
[361845625,1747835447375,-420.0,0.00032876,5]
[361845626,1747835447389,-430.67675626,0.00032876,5]
[361845627,1747835447398,-151.0,0.00032876,7]
[361845628,1747835447408,-898.33,0.00032876,5]
[361845629,1747835447418,-151.0,0.00032876,7]
[361845630,1747835447427,-380.0,0.00032876,5]
[361845631,1747835447437,-420.0,0.00032876,5]
[361845632,1747835447447,-151.0,0.00032876,7]
[361845633,1747835447457,-151.0,0.00032876,7]
[361845634,1747835447467,-420.0,0.00032876,5]
[361845635,1747835447477,-437.59772906,0.00032876,5]
[361845636,1747835447487,-420.0,0.00032876,5]
[361845637,1747835447497,-739.31,0.00032876,5]
[361845638,1747835447506,-420.0,0.00032876,5]
[361845639,1747835447516,-151.0,0.00032876,7]
[361845640,1747835447526,-420.0,0.00032876,5]
[361845641,1747835447536,-1354.66,0.00032876,5]
[361845642,1747835447546,-151.0,0.00032876,7]
[361845643,1747835447555,-151.9259,0.00032876,7]
[361845644,1747835447565,-420.0,0.00032876,5]
[361845645,1747835447576,-605.86,0.00032876,5]
[361845646,1747835447586,-420.0,0.00032876,5]
[361845647,1747835447596,-151.0,0.00032876,7]
[361845648,1747835447606,-151.0,0.00032876,7]
[361845649,1747835447616,-151.0,0.00032876,7]
[361845650,1747835447626,-420.0,0.00032876,5]
[361845651,1747835447639,-151.0,0.00032876,7]
[361845652,1747835447649,-409.82,0.00032876,5]
[361845653,1747835447659,-151.0,0.00032876,7]
[361845654,1747835447669,-420.0,0.00032876,5]
[361845655,1747835447679,-290.45763115,0.00032876,5]
[361845657,1747835828837,1706.301434,7.945e-05,2]
[361845658,1747836033181,-200.0,0.00026738,2]
[361845659,1747836033205,-46.93563469,0.00026738,2]
[361845660,1747836086117,168.03304006,7.5e-07,2]
[361845666,1747836378009,-152.93,0.00013699,2]
[361845667,1747836564896,1000.0,0.00027397,120]
[361845668,1747836576471,1000.0,0.00027397,120]
[361845669,1747836592530,1000.0,0.00027397,120]
[361845679,1747836631819,-173.17,0.00024745,2]
[361845680,1747836631830,-200.0,0.00025659,2]
[361845681,1747836631840,-200.0,0.00026279,2]
[361845682,1747836631851,-350.06153372,0.00026573,2]
[361845683,1747836631860,-2280.10013,0.00026604,2]
[361845684,1747836631873,-1200.0,0.00026737,2]
[361845685,1747836631883,-700.07105478,0.00026738,2]
[361845686,1747836631894,-1109.47368238,0.00026738,2]
[361845687,1747836631938,-7890.51962815,0.00026738,2]
[361845688,1747836631948,-200.0,0.00027219,2]
[361845689,1747836631958,-250.0,0.00027219,2]
[361845690,1747836631968,-188.68776602,0.00027274,2]
[361845691,1747836631978,-200.0,0.00027374,117]
[361845692,1747836631989,-203.25959876,0.000279,18]
[361845693,1747836631999,-203.2595986,0.00028959,20]
[361845694,1747836632010,-200.0,0.00029412,117]
[361845695,1747836632021,-564.27340847,0.00029429,2]
[361845696,1747836632034,-555.99659153,0.00029429,2]
[361845697,1747836632044,-192.0,0.0003,14]
[361845698,1747836632055,-203.2595986,0.00030018,22]
[361845699,1747836632065,-208.0,0.00030643,2]
[361845700,1747836632075,-262.76,0.00030667,120]
[361845701,1747836632085,-164.63034405,0.00030776,2]
[361845702,1747836632095,-301.89,0.00030867,2]
[361845703,1747836632105,-229.55,0.00030931,2]
[361845704,1747836632115,-229.55,0.00030939,2]
[361845705,1747836632375,-229.55,0.00030947,2]
[361845706,1747836632386,-229.55,0.00030955,2]
[361845707,1747836632396,-229.55,0.00030964,2]
[361845708,1747836632406,-229.55,0.00030972,2]
[361845709,1747836632416,-1422.3,0.0003098,2]
[361845710,1747836632425,-229.55,0.0003098,2]
[361845711,1747836632436,-530.85,0.00030983,120]
[361845712,1747836632446,-229.55,0.00030988,2]
[361845713,1747836632456,-229.55,0.00030996,2]
[361845714,1747836632466,-229.55,0.00031004,2]
[361845715,1747836632475,-229.55,0.00031012,2]
[361845716,1747836632484,-229.55,0.0003102,2]
[361845717,1747836632495,-229.55,0.00031029,2]
[361845718,1747836632504,-229.55,0.00031037,2]
[361845719,1747836632514,-229.55,0.00031045,2]
[361845720,1747836632524,-229.55,0.00031053,2]
[361845721,1747836632533,-229.55,0.00031061,2]
[361845722,1747836632543,-229.55,0.00031069,2]
[361845723,1747836632553,-203.2595986,0.00031076,24]
[361845724,1747836632563,-229.55,0.00031077,2]
[361845725,1747836632572,-3822.11,0.00031079,2]
[361845726,1747836632582,-229.55,0.00031086,2]
[361845727,1747836632592,-4063.01,0.00031208,2]
[361845728,1747836632602,-532.34,0.00031229,2]
[361845729,1747836632612,-4698.28,0.00031404,2]
[361845730,1747836632626,-4942.32,0.00031404,10]
[361845731,1747836632637,-301.55,0.0003142,2]
[361845732,1747836632646,-188.68776601,0.00031462,2]
[361845733,1747836632656,-207.4,0.00031496,2]
[361845734,1747836632667,-1199.20597015,0.00031496,2]
[361845735,1747836632679,-487.58964411,0.00031496,2]
[361845736,1747836632690,-668.65185757,0.00031496,2]
[361845737,1747836632699,-151.0,0.00031496,2]
[361845738,1747836632710,-3721.88,0.00031515,2]
[361845739,1747836632719,-23900.0,0.00031515,2]
[361845740,1747836632730,-301.67,0.00031562,2]
[361845741,1747836632740,-303.23,0.00031562,2]
[361845742,1747836632750,-301.82,0.00031562,2]
[361845743,1747836632760,-305.77,0.00031562,2]
[361845744,1747836632771,-187.42,0.00031569,2]
[361845745,1747836632780,-1120.27,0.00031693,2]
[361845746,1747836632790,-200.0,0.00031753,2]
[361845747,1747836632799,-1005.66,0.00031795,2]
[361845748,1747836632809,-167.39,0.00031878,2]
[361845749,1747836632819,-973.52,0.00031896,2]
[361845750,1747836632829,-1311.52,0.0003192,120]
[361845751,1747836632839,-1000.0,0.00031973,2]
[361845752,1747836632850,-693.3919763,0.00032044,2]
[361845753,1747836632860,-250.0,0.00032064,2]
[361845754,1747836632873,-203.2595986,0.00032135,26]
[361845755,1747836632883,-1186.337457,0.00032144,4]
[361845756,1747836632892,-304.08,0.0003247,2]
[361845757,1747836632902,-305.38,0.0003247,2]
[361845758,1747836632911,-2000.0,0.000325,20]
[361845759,1747836632921,-153.41054887,0.00032592,2]
[361845760,1747836632931,-304.98,0.00032594,2]
[361845761,1747836632941,-305.33,0.00032635,2]
[361845762,1747836632952,-305.86,0.00032635,2]
[361845763,1747836632962,-302.95,0.00032635,2]
[361845764,1747836632972,-303.0,0.00032635,2]
[361845765,1747836632983,-1900.0,0.000327,11]
[361845766,1747836632992,-305.74,0.00032718,2]
[361845767,1747836633001,-302.58,0.00032718,2]
[361845768,1747836633012,-302.32,0.00032718,2]
[361845769,1747836633022,-438.8069,0.00032758,2]
[361845770,1747836633033,-1573.42081418,0.00032765,2]
[361845771,1747836633042,-309.33272102,0.00032765,2]